[Event "32nd Panamerican Youth 2022"]
[Site "Montevideo"]
[Date "2022.06.28"]
[Round "4.4"]
[White "Casalaspro, Mathias Andre"]
[Black "Martinez Flores, Matias"]
[Result "1-0"]
[ECO "B32"]
[WhiteElo "1686"]
[BlackElo "1508"]
[Annotator "NA RC"]
[PlyCount "99"]
[EventDate "2022.06.26"]
[EventType "swiss"]
[EventCountry "URU"]
[SourceTitle "playchess.com"]
[Source "ChessBase"]
[SourceQuality "1"]
[TimeControl "5400+30"]

1. e4 {[%emt 0:01:16]} c5 {[%emt 0:00:07]} 2. Nf3 {[%emt 0:00:17]} Nc6 {[%emt 0:00:07]} 3. d4 {[%emt 0:00:31]} cxd4 {[%emt 0:00:07]} 4. Nxd4 {[%emt 0:00:38]} Qb6 {[%emt 0:00:12]} 5. Nb3 {[%emt 0:01:26]} Nf6 {[%emt 0:00:28]} 6. Nc3 {[%emt 0:00:24]} e5 {[%emt 0:00:27]} 7. Be3 {[%emt 0:01:58]} Qc7 {[%emt 0:00:06]} 8. a3 {[%emt 0:07:30]} Be7 {[%emt 0:01:46]} 9. Qd2 {[%emt 0:00:53]} a6 {[%emt 0:10:43]} 10. Rd1 {[%emt 0:02:45]} d6 {[%emt 0:10:02]} 11. f3 {[%emt 0:02:25]} h6 {[%emt 0:02:11]} 12. Bc4 {[%emt 0:10:49]} b5 {[%emt 0:08:55]} 13. Bxb5 {[%emt 0:04:48]} axb5 {[%emt 0:00:55]} 14. Nxb5 {[%emt 0:00:04]} Qd8 {[%emt 0:00:30]} 15. Nxd6+ {[%emt 0:00:23]} Bxd6 {[%emt 0:00:10]} 16. Qxd6 {[%emt 0:00:01]} Qxd6 {[%emt 0:01:09]} 17. Rxd6 {[%emt 0:00:03]} Ne7 {[%emt 0:01:44]} 18. Bc5 {[%emt 0:03:41]} Be6 {[%emt 0:01:38]} 19. Kf2 {[%emt 0:01:52]} Rc8 {[%emt 0:00:53]} 20. Rc1 {[%emt 0:05:21]} Bxb3 {[%emt 0:06:30]} 21. cxb3 {[%emt 0:00:01]} O-O {[%emt 0:01:17]} 22. b4 {[%emt 0:02:38]} Ng6 {[%emt 0:02:31]} 23. g3 {[%emt 0:02:51]} Rc7 {[%emt 0:05:43]} 24. Rcd1 {[%emt 0:02:03]} Rfc8 {[%emt 0:08:18]} 25. a4 {[%emt 0:02:28]} Nf8 {[%emt 0:01:24]} 26. Rd8 {[%emt 0:01:53]} Rxd8 {[%emt 0:00:22]} 27. Rxd8 {[%emt 0:00:06]} N6d7 {[%emt 0:00:10]} 28. Bxf8 {[%emt 0:00:32]} Nxf8 {[%emt 0:00:13]} 29. a5 {[%emt 0:00:17]} Rb7 {[%emt 0:00:29]} 30. a6 {[%emt 0:00:22]} Rd7 {[%emt 0:06:30]} 31. Ra8 {[%emt 0:01:15]} Rd2+ {[%emt 0:09:50]} 32. Ke3 {[%emt 0:00:13]} Rxb2 {[%emt 0:00:03]} 33. a7 {[%emt 0:00:05]} Ra2 {[%emt 0:00:48]} 34. b5 {[%emt 0:00:05]} Kh7 {[%emt 0:00:13]} 35. b6 {[%emt 0:00:35]} Nd7 {[%emt 0:00:57]} 36. b7 {[%emt 0:00:33]} Ra3+ {[%emt 0:00:50]} 37. Kd2 {[%emt 0:00:08]} Ra2+ {[%emt 0:00:18]} 38. Kc1 {[%emt 0:00:06]} Nc5 {[%emt 0:01:06]} 39. b8=Q {[%emt 0:01:12]} Rxh2 {[%emt 0:00:14]} 40. Qb5 {[%emt 0:00:30]} Ne6 {[%emt 0:00:57]} 41. Qxe5 {[%emt 0:00:45]} Rh1+ {[%emt 0:00:36]} 42. Kb2 {[%emt 0:00:06]} Rh2+ {[%emt 0:00:10]} 43. Ka3 {[%emt 0:00:05]} Rh5 {[%emt 0:01:13]} 44. Rh8+ {[%emt 0:00:14]} Kxh8 {[%emt 0:00:06]} 45. a8=Q+ {[%emt 0:00:06]} Kh7 {[%emt 0:00:10]} 46. Qxh5 {[%emt 0:00:07]} Ng5 {[%emt 0:00:16]} 47. f4 {[%emt 0:00:21]} g6 {[%emt 0:00:07]} 48. Qh1 {[%emt 0:00:13]} Ne6 {[%emt 0:00:12]} 49. Qxh6+ {[%emt 0:00:09]} Kxh6 {[%emt 0:00:07]} 50. Qh8# 1-0

[Event "32nd Panamerican Youth 2022"]
[Site "Montevideo"]
[Date "2022.06.28"]
[Round "4.5"]
[White "Vidyarthi, Omya"]
[Black "Su, Jasmine Zhixin"]
[Result "1/2-1/2"]
[ECO "A45"]
[WhiteElo "1872"]
[BlackElo "1984"]
[Annotator "RC"]
[PlyCount "119"]
[EventDate "2022.06.26"]
[EventType "swiss"]
[EventCountry "URU"]
[SourceTitle "playchess.com"]
[Source "ChessBase"]
[SourceQuality "1"]
[TimeControl "5400+30"]

1. d4 {[%emt 0:00:03]} Nf6 {[%emt 0:00:05]} 2. Nc3 {[%emt 0:00:08]} d5 {[%emt 0:00:19]} 3. Bf4 {[%emt 0:00:08]} e6 {[%emt 0:01:23]} 4. Nb5 {[%emt 0:01:06]} Na6 {[%emt 0:00:27]} 5. e3 {[%emt 0:00:18]} Bb4+ {[%emt 0:02:43]} 6. c3 {[%emt 0:00:38]} Be7 {[%emt 0:00:27]} 7. Na3 {[%emt 0:01:51]} c5 8. Bxa6 {[%emt 0:01:06]} bxa6 {[%emt 0:03:06]} 9. h3 {[%emt 0:02:53]} O-O {[%emt 0:04:12]} 10. Nc2 {[%emt 0:00:33]} Qb6 {[%emt 0:01:19]} 11. Rb1 {[%emt 0:04:57]} a5 {[%emt 0:01:40]} 12. Ne2 {[%emt 0:02:05]} Ba6 {[%emt 0:00:41]} 13. O-O {[%emt 0:01:51]} Rac8 {[%emt 0:02:08]} 14. Re1 {[%emt 0:01:39]} Rfd8 {[%emt 0:01:58]} 15. Bh2 {[%emt 0:03:57]} Bc4 {[%emt 0:03:06]} 16. b3 {[%emt 0:05:18]} Ba6 {[%emt 0:03:01]} 17. f3 {[%emt 0:03:12]} cxd4 {[%emt 0:05:13]} 18. cxd4 {[%emt 0:02:39]} Rc6 {[%emt 0:01:03]} 19. Qd2 {[%emt 0:02:38]} Rdc8 {[%emt 0:01:42]} 20. Rb2 {[%emt 0:03:23]} Bb5 {[%emt 0:12:24]} 21. Bg3 {[%emt 0:07:53]} Qa6 {[%emt 0:05:11]} 22. Nf4 {[%emt 0:06:09]} Rc3 {[%emt 0:02:24]} 23. Rd1 {[%emt 0:02:15]} Qc6 {[%emt 0:04:42]} 24. Ne1 {[%emt 0:00:40]} Bb4 {[%emt 0:00:53]} 25. Qf2 {[%emt 0:01:16]} Rc1 {[%emt 0:03:19]} 26. Rb1 {[%emt 0:08:23]} Bxe1 {[%emt 0:08:44]} 27. Rxe1 {[%emt 0:05:03]} Rc2 {[%emt 0:01:26]} 28. Ne2 {[%emt 0:00:13]} Qa6 {[%emt 0:00:59]} 29. Be5 {[%emt 0:04:14]} Rxe2 {[%emt 0:01:27]} 30. Rxe2 {[%emt 0:01:01]} Bxe2 {[%emt 0:00:02]} 31. Bxf6 {[%emt 0:00:24]} gxf6 {[%emt 0:00:07]} 32. Qh4 {[%emt 0:01:58]} Kg7 {[%emt 0:07:22]} 33. Qg3+ {[%emt 0:02:59]} Kf8 {[%emt 0:00:26]} 34. Re1 {[%emt 0:01:08]} Ke7 {[%emt 0:00:47]} 35. e4 {[%emt 0:00:55]} dxe4 {[%emt 0:02:05]} 36. fxe4 {[%emt 0:00:05]} Rc2 {[%emt 0:04:08]} 37. e5 {[%emt 0:01:02]} Qd3 {[%emt 0:01:32]} 38. Qf2 {[%emt 0:02:02]} f5 {[%emt 0:04:19]} 39. d5 {[%emt 0:00:08]} Qa6 {[%emt 0:04:15]} 40. Qh4+ {[%emt 0:00:25]} Ke8 {[%emt 0:00:50]} 41. d6 {[%emt 0:01:36]} Qb7 {[%emt 0:00:50]} 42. Qg5 {[%emt 0:00:10]} Bh5 {[%emt 0:00:25]} 43. Qg8+ {[%emt 0:01:57]} Kd7 {[%emt 0:00:07]} 44. Qg5 {[%emt 0:00:04]} Bg6 {[%emt 0:01:30]} 45. Qe7+ {[%emt 0:01:39]} Kc6 {[%emt 0:00:18]} 46. Rd1 {[%emt 0:00:04]} Qd7 {[%emt 0:00:20]} 47. Qh4 {[%emt 0:00:34]} Kb7 {[%emt 0:01:10]} 48. Qe7 {[%emt 0:02:25]} Rc7 {[%emt 0:00:33]} 49. Qh4 {[%emt 0:00:12]} Rc8 {[%emt 0:00:05]} 50. Kh1 {[%emt 0:03:20]} Kb8 {[%emt 0:01:14]} 51. Qe7 {[%emt 0:00:44]} Qxe7 {[%emt 0:01:19]} 52. dxe7 {[%emt 0:00:03]} f6 {[%emt 0:00:35]} 53. exf6 {[%emt 0:00:06]} Kc7 {[%emt 0:00:37]} 54. Kh2 {[%emt 0:01:18]} Rg8 {[%emt 0:01:06]} 55. g4 {[%emt 0:02:30]} fxg4 {[%emt 0:00:59]} 56. hxg4 {[%emt 0:00:03]} Bf7 {[%emt 0:00:31]} 57. Kh3 {[%emt 0:01:47]} h6 {[%emt 0:01:20]} 58. Kh4 {[%emt 0:01:15]} Rg6 59. Rd8 Rxf6 60. Rf8 1/2-1/2

[Event "32nd Panamerican Youth 2022"]
[Site "Montevideo"]
[Date "2022.06.28"]
[Round "4.6"]
[White "El Hage Serrano, Caely"]
[Black "Carvajal Mendoza, Maria Belen"]
[Result "1-0"]
[ECO "C41"]
[WhiteElo "1308"]
[BlackElo "1377"]
[Annotator "NA RC"]
[PlyCount "61"]
[EventDate "2022.06.26"]
[EventType "swiss"]
[EventCountry "URU"]
[SourceTitle "playchess.com"]
[Source "ChessBase"]
[SourceQuality "1"]
[TimeControl "5400+30"]

1. e4 {[%emt 0:00:02]} e5 {[%emt 0:00:14]} 2. Nf3 {[%emt 0:00:08]} d6 {[%emt 0:00:24]} 3. c3 {[%emt 0:00:51]} c6 {[%emt 0:01:23]} 4. d3 {[%emt 0:00:07]} Nd7 {[%emt 0:00:56]} 5. d4 {[%emt 0:03:01]} Ngf6 {[%emt 0:07:26]} 6. Nbd2 {[%emt 0:01:20]} Be7 {[%emt 0:01:12]} 7. Bd3 {[%emt 0:02:37]} O-O {[%emt 0:01:54]} 8. O-O {[%emt 0:04:47]} Qc7 {[%emt 0:08:52]} 9. Re1 {[%emt 0:03:13]} b5 {[%emt 0:07:28]} 10. b4 {[%emt 0:03:46]} Re8 {[%emt 0:16:51]} 11. Bb2 {[%emt 0:11:54]} Bb7 {[%emt 0:04:29]} 12. Rc1 {[%emt 0:01:47]} a5 {[%emt 0:02:09]} 13. a3 {[%emt 0:00:16]} Qb6 {[%emt 0:04:49]} 14. c4 axb4 {[%emt 0:00:57]} 15. axb4 {[%emt 0:01:54]} bxc4 {[%emt 0:01:00]} 16. Nxc4 {[%emt 0:00:10]} Qc7 {[%emt 0:01:59]} 17. Na5 {[%emt 0:03:04]} c5 {[%emt 0:07:25]} 18. Nb3 {[%emt 0:09:12]} Bf8 {[%emt 0:13:31]} 19. bxc5 {[%emt 0:07:13]} exd4 {[%emt 0:02:25]} 20. c6 {[%emt 0:00:54]} Bxc6 {[%emt 0:00:40]} 21. Nfxd4 {[%emt 0:00:12]} Nc5 {[%emt 0:00:45]} 22. Nxc6 {[%emt 0:01:10]} Qxc6 {[%emt 0:02:09]} 23. Bxf6 {[%emt 0:00:13]} gxf6 {[%emt 0:00:33]} 24. Qg4+ {[%emt 0:00:09]} Bg7 {[%emt 0:01:44]} 25. Nd4 {[%emt 0:00:14]} Qd7 {[%emt 0:05:23]} 26. Nf5 {[%emt 0:00:36]} Ne6 {[%emt 0:00:03]} 27. Bc4 {[%emt 0:01:07]} Reb8 {[%emt 0:03:38]} 28. Red1 {[%emt 0:01:34]} Rb6 {[%emt 0:01:10]} 29. Nxg7 {[%emt 0:00:20]} Nf8 {[%emt 0:02:29]} 30. Nf5+ {[%emt 0:00:25]} Ng6 {[%emt 0:00:03]} 31. Nh6+ {[%emt 0:00:10]} 1-0

[Event "32nd Panamerican Youth 2022"]
[Site "Montevideo"]
[Date "2022.06.28"]
[Round "4.7"]
[White "Azocar Gajardo, Javiera"]
[Black "Gomez Gonzales, Fabiana"]
[Result "0-1"]
[ECO "B01"]
[WhiteElo "1245"]
[BlackElo "1289"]
[Annotator "NA RC"]
[PlyCount "68"]
[EventDate "2022.06.26"]
[EventType "swiss"]
[EventCountry "URU"]
[SourceTitle "playchess.com"]
[Source "ChessBase"]
[SourceQuality "1"]
[TimeControl "5400+30"]

1. e4 {[%emt 0:00:03]} d5 {[%emt 0:00:56]} 2. exd5 {[%emt 0:00:15]} Qxd5 {[%emt 0:00:09]} 3. Nc3 {[%emt 0:00:12]} Qa5 {[%emt 0:00:10]} 4. Bc4 {[%emt 0:00:12]} Nf6 {[%emt 0:00:44]} 5. h3 {[%emt 0:00:12]} c6 {[%emt 0:01:12]} 6. d3 {[%emt 0:00:12]} Bf5 {[%emt 0:01:24]} 7. g4 {[%emt 0:00:27]} Bg6 {[%emt 0:00:31]} 8. f4 {[%emt 0:00:21]} e6 {[%emt 0:02:20]} 9. Nf3 {[%emt 0:00:59]} h5 {[%emt 0:18:54]} 10. Nh4 {[%emt 0:02:56]} Bh7 {[%emt 0:11:37]} 11. g5 {[%emt 0:03:37]} Nd5 {[%emt 0:08:06]} 12. Qxh5 {[%emt 0:06:32]} Nf6 {[%emt 0:04:40]} 13. Qe2 {[%emt 0:01:28]} Nd5 {[%emt 0:05:35]} 14. Bd2 {[%emt 0:03:25]} Bb4 {[%emt 0:03:16]} 15. Bxd5 {[%emt 0:06:10]} cxd5 {[%emt 0:01:35]} 16. Qe5 {[%emt 0:04:21]} Bf8 {[%emt 0:05:21]} 17. g6 {[%emt 0:01:35]} Nc6 {[%emt 0:01:33]} 18. gxf7+ {[%emt 0:01:10]} Kxf7 {[%emt 0:00:13]} 19. Qh5+ {[%emt 0:00:44]} Kg8 {[%emt 0:06:37]} 20. Ng6 {[%emt 0:01:29]} Bxg6 {[%emt 0:00:43]} 21. Qxg6 {[%emt 0:00:10]} Rh6 {[%emt 0:01:39]} 22. Qg4 {[%emt 0:00:29]} Nb4 {[%emt 0:03:49]} 23. Kd1 {[%emt 0:01:39]} Qc7 {[%emt 0:04:08]} 24. f5 {[%emt 0:01:22]} Rf6 {[%emt 0:01:04]} 25. fxe6 {[%emt 0:01:21]} Re8 {[%emt 0:00:58]} 26. a3 {[%emt 0:01:50]} Qa5 {[%emt 0:00:47]} 27. Rb1 {[%emt 0:02:59]} Rfxe6 {[%emt 0:03:41]} 28. axb4 {[%emt 0:03:39]} Qd8 {[%emt 0:02:23]} 29. Qd4 {[%emt 0:01:10]} Qe7 {[%emt 0:00:30]} 30. Nxd5 {[%emt 0:02:15]} Qf7 {[%emt 0:00:53]} 31. Qg4 {[%emt 0:03:08]} Rg6 {[%emt 0:00:18]} 32. Qc4 {[%emt 0:01:58]} Qf3+ {[%emt 0:00:23]} 33. Kc1 {[%emt 0:04:49]} Qxh1+ {[%emt 0:00:11]} 34. Be1 {[%emt 0:00:35]} Qxe1# 0-1

[Event "32nd Panamerican Youth 2022"]
[Site "Montevideo"]
[Date "2022.06.28"]
[Round "4.8"]
[White "Reyes Perez, Aracelly"]
[Black "Mollo Figueroa, Nicole"]
[Result "1/2-1/2"]
[ECO "B23"]
[WhiteElo "1238"]
[BlackElo "1340"]
[Annotator "NA RC"]
[PlyCount "55"]
[EventDate "2022.06.26"]
[EventType "swiss"]
[EventCountry "URU"]
[SourceTitle "playchess.com"]
[Source "ChessBase"]
[SourceQuality "1"]
[TimeControl "5400+30"]

1. e4 c5 2. Nc3 d6 3. d3 Nc6 {[%emt 0:05:59]} 4. Be3 {[%emt 0:07:11]} Nf6 {[%emt 0:02:20]} 5. g3 {[%emt 0:10:48]} g6 {[%emt 0:08:07]} 6. Bg2 {[%emt 0:03:46]} Bg7 {[%emt 0:01:43]} 7. h3 {[%emt 0:09:19]} Rb8 {[%emt 0:02:31]} 8. f4 {[%emt 0:15:51]} Qc7 {[%emt 0:03:09]} 9. Nge2 {[%emt 0:04:26]} b5 {[%emt 0:02:14]} 10. Qd2 {[%emt 0:06:51]} O-O {[%emt 0:03:26]} 11. O-O {[%emt 0:02:54]} b4 {[%emt 0:02:17]} 12. Nd1 {[%emt 0:07:58]} Nd7 {[%emt 0:13:57]} 13. f5 {[%emt 0:06:14]} Nde5 {[%emt 0:01:46]} 14. g4 {[%emt 0:03:27]} Nd7 {[%emt 0:03:42]} 15. Bh6 {[%emt 0:01:31]} f6 {[%emt 0:01:24]} 16. Bxg7 {[%emt 0:00:32]} Kxg7 {[%emt 0:00:07]} 17. Nf4 {[%emt 0:00:43]} Nb6 {[%emt 0:00:08]} 18. Ne3 {[%emt 0:01:37]} a5 {[%emt 0:01:35]} 19. Nfd5 {[%emt 0:01:26]} Nxd5 {[%emt 0:00:52]} 20. Nxd5 {[%emt 0:00:05]} Qa7 {[%emt 0:00:12]} 21. Kh1 {[%emt 0:00:49]} g5 {[%emt 0:00:46]} 22. Rac1 {[%emt 0:02:46]} Ba6 {[%emt 0:02:17]} 23. Rfd1 {[%emt 0:05:33]} Rh8 {[%emt 0:03:02]} 24. c3 {[%emt 0:03:21]} b3 {[%emt 0:02:09]} 25. a3 {[%emt 0:00:30]} Ne5 {[%emt 0:00:30]} 26. d4 {[%emt 0:00:30]} Nd3 {[%emt 0:00:30]} 27. Rb1 {[%emt 0:00:30]} c4 {[%emt 0:00:30]} 28. Qe2 {[%emt 0:00:30]} 1/2-1/2

[Event "32nd Panamerican Youth 2022"]
[Site "Montevideo"]
[Date "2022.06.28"]
[Round "4.13"]
[White "Chen, Rachel Ruoxuan"]
[Black "Adam, Ernestina"]
[Result "1/2-1/2"]
[ECO "B90"]
[WhiteElo "1618"]
[BlackElo "1681"]
[Annotator "NA RC"]
[PlyCount "62"]
[EventDate "2022.06.26"]
[EventType "swiss"]
[EventCountry "URU"]
[SourceTitle "playchess.com"]
[Source "ChessBase"]
[SourceQuality "1"]
[TimeControl "5400+30"]

1. e4 {[%emt 0:00:03]} c5 {[%emt 0:00:39]} 2. Nf3 {[%emt 0:00:03]} d6 {[%emt 0:00:23]} 3. d4 {[%emt 0:00:04]} cxd4 {[%emt 0:00:10]} 4. Nxd4 {[%emt 0:00:02]} Nf6 {[%emt 0:00:40]} 5. Nc3 {[%emt 0:00:04]} a6 {[%emt 0:00:11]} 6. Bd3 {[%emt 0:00:04]} e5 {[%emt 0:02:19]} 7. Nde2 {[%emt 0:00:04]} Be7 {[%emt 0:01:57]} 8. O-O {[%emt 0:00:04]} b5 {[%emt 0:01:53]} 9. Bg5 {[%emt 0:04:20]} Be6 {[%emt 0:05:02]} 10. f4 {[%emt 0:06:51]} Ng4 {[%emt 0:13:55]} 11. Bxe7 Qxe7 {[%emt 0:13:29]} 12. Qe1 {[%emt 0:12:48]} b4 {[%emt 0:10:34]} 13. f5 {[%emt 0:05:09]} bxc3 {[%emt 0:06:46]} 14. fxe6 {[%emt 0:00:15]} fxe6 {[%emt 0:00:25]} 15. Nxc3 {[%emt 0:00:21]} Nf6 {[%emt 0:00:51]} 16. Bc4 {[%emt 0:06:56]} d5 {[%emt 0:06:08]} 17. Bb3 {[%emt 0:00:33]} d4 {[%emt 0:03:04]} 18. Nd1 {[%emt 0:12:11]} Nbd7 {[%emt 0:02:09]} 19. Ba4 {[%emt 0:02:17]} O-O {[%emt 0:00:55]} 20. Bxd7 {[%emt 0:00:20]} Qxd7 {[%emt 0:00:44]} 21. Nf2 {[%emt 0:03:10]} Qc6 {[%emt 0:05:55]} 22. Qe2 {[%emt 0:00:36]} Rab8 {[%emt 0:02:01]} 23. b3 {[%emt 0:10:57]} Rfc8 {[%emt 0:02:15]} 24. Rac1 {[%emt 0:00:22]} Rc7 {[%emt 0:07:45]} 25. Rfe1 {[%emt 0:01:24]} Rbc8 {[%emt 0:02:14]} 26. Nd3 {[%emt 0:01:25]} Qd6 {[%emt 0:00:48]} 27. Nb2 {[%emt 0:02:29]} Qc5 {[%emt 0:02:06]} 28. Kh1 {[%emt 0:02:15]} Qb5 {[%emt 0:02:04]} 29. Nc4 {[%emt 0:01:32]} Qc5 {[%emt 0:01:57]} 30. Nb2 {[%emt 0:05:10]} Qb5 {[%emt 0:01:35]} 31. Nc4 {[%emt 0:02:42]} Qc5 {[%emt 0:00:24]} 1/2-1/2

[Event "32nd Panamerican Youth 2022"]
[Site "Montevideo"]
[Date "2022.06.28"]
[Round "4.14"]
[White "Da Cunha, Gabriela Goes"]
[Black "Brito Carrascal, Isabela"]
[Result "1-0"]
[ECO "E10"]
[WhiteElo "1726"]
[BlackElo "1487"]
[Annotator "NA RC"]
[PlyCount "58"]
[EventDate "2022.06.26"]
[EventType "swiss"]
[EventCountry "URU"]
[SourceTitle "playchess.com"]
[Source "ChessBase"]
[SourceQuality "1"]
[TimeControl "5400+30"]

1. d4 {[%emt 0:00:20]} Nf6 {[%emt 0:00:08]} 2. c4 {[%emt 0:00:08]} e6 {[%emt 0:00:03]} 3. Nf3 {[%emt 0:00:07]} d5 {[%emt 0:00:28]} 4. cxd5 {[%emt 0:00:31]} exd5 {[%emt 0:00:10]} 5. Bg5 {[%emt 0:00:56]} Be7 {[%emt 0:00:24]} 6. Bxf6 {[%emt 0:00:14]} Bxf6 {[%emt 0:04:45]} 7. Nc3 {[%emt 0:00:17]} O-O {[%emt 0:01:06]} 8. e3 {[%emt 0:00:53]} c6 {[%emt 0:06:08]} 9. b4 {[%emt 0:02:31]} b6 {[%emt 0:05:13]} 10. Qb3 {[%emt 0:07:21]} Be6 {[%emt 0:08:40]} 11. Na4 {[%emt 0:11:28]} a5 {[%emt 0:10:31]} 12. bxa5 {[%emt 0:06:06]} b5 {[%emt 0:00:15]} 13. Nc5 {[%emt 0:06:20]} Qxa5+ {[%emt 0:00:19]} 14. Nd2 {[%emt 0:00:42]} Na6 {[%emt 0:08:44]} 15. Nxa6 {[%emt 0:16:46]} Rxa6 {[%emt 0:01:09]} 16. Bd3 {[%emt 0:10:23]} Rc8 {[%emt 0:22:21]} 17. Qb2 {[%emt 0:04:57]} Rb6 {[%emt 0:06:06]} 18. O-O {[%emt 0:04:01]} c5 {[%emt 0:06:24]} 19. Nb3 {[%emt 0:19:38]} Qa8 {[%emt 0:02:08]} 20. Qb1 {[%emt 0:00:46]} c4 {[%emt 0:01:29]} 21. Bxh7+ {[%emt 0:00:23]} Kh8 {[%emt 0:00:08]} 22. Nc5 {[%emt 0:00:25]} g6 {[%emt 0:01:47]} 23. Bxg6 {[%emt 0:00:05]} fxg6 {[%emt 0:00:05]} 24. Qxg6 {[%emt 0:00:05]} Rf8 {[%emt 0:10:51]} 25. Nxe6 {[%emt 0:07:02]} Rxe6 {[%emt 0:00:15]} 26. Qh6+ {[%emt 0:00:04]} Kg8 {[%emt 0:00:10]} 27. Qg6+ {[%emt 0:00:12]} Kh8 {[%emt 0:00:07]} 28. Qh6+ {[%emt 0:00:24]} Kg8 {[%emt 0:00:06]} 29. Qg6+ {[%emt 0:00:07]} Kh8 1-0

[Event "32nd Panamerican Youth 2022"]
[Site "Montevideo"]
[Date "2022.06.28"]
[Round "4.15"]
[White "Wilson, Hannah"]
[Black "Reifer-Belle, Chanon"]
[Result "1/2-1/2"]
[ECO "C55"]
[WhiteElo "1492"]
[BlackElo "1213"]
[Annotator "NA RC"]
[PlyCount "98"]
[EventDate "2022.06.26"]
[EventType "swiss"]
[EventCountry "URU"]
[SourceTitle "playchess.com"]
[Source "ChessBase"]
[SourceQuality "1"]
[TimeControl "5400+30"]

1. e4 {[%emt 0:00:19]} e5 {[%emt 0:00:08]} 2. Nf3 {[%emt 0:00:19]} Nc6 {[%emt 0:00:02]} 3. d4 {[%emt 0:00:35]} exd4 {[%emt 0:00:11]} 4. Bc4 {[%emt 0:00:31]} Nf6 {[%emt 0:00:28]} 5. e5 {[%emt 0:00:30]} d5 {[%emt 0:00:21]} 6. Bb5 {[%emt 0:00:50]} Ne4 {[%emt 0:00:36]} 7. Nxd4 {[%emt 0:00:47]} Bd7 {[%emt 0:00:41]} 8. Bxc6 {[%emt 0:01:03]} bxc6 {[%emt 0:00:23]} 9. O-O {[%emt 0:00:59]} Bc5 {[%emt 0:01:04]} 10. f3 {[%emt 0:00:46]} Ng5 {[%emt 0:00:13]} 11. f4 {[%emt 0:01:05]} Ne4 {[%emt 0:00:35]} 12. Be3 {[%emt 0:14:06]} Qb8 {[%emt 0:02:21]} 13. Qc1 {[%emt 0:05:11]} Bb6 {[%emt 0:14:12]} 14. c3 {[%emt 0:08:33]} c5 {[%emt 0:04:01]} 15. Nb3 {[%emt 0:10:04]} c4 {[%emt 0:04:58]} 16. Nd4 {[%emt 0:07:01]} c5 {[%emt 0:06:41]} 17. Nf3 {[%emt 0:03:35]} O-O {[%emt 0:11:04]} 18. Nbd2 {[%emt 0:05:07]} Bf5 {[%emt 0:02:29]} 19. Nb1 {[%emt 0:18:11]} f6 {[%emt 0:07:00]} 20. Qd1 {[%emt 0:04:35]} Rd8 {[%emt 0:03:24]} 21. Nh4 {[%emt 0:02:26]} Qc8 {[%emt 0:01:17]} 22. Nxf5 {[%emt 0:05:49]} Qxf5 {[%emt 0:00:07]} 23. exf6 Nxf6 {[%emt 0:01:09]} 24. Qa4 {[%emt 0:04:02]} Re8 {[%emt 0:03:01]} 25. Bf2 {[%emt 0:03:02]} Qxf4 {[%emt 0:02:39]} 26. Bd4 {[%emt 0:00:45]} Qh4 {[%emt 0:02:33]} 27. Bxf6 {[%emt 0:00:48]} gxf6 {[%emt 0:00:13]} 28. Qc6 {[%emt 0:00:44]} Qg5 {[%emt 0:03:43]} 29. Na3 {[%emt 0:01:52]} Qe3+ {[%emt 0:02:54]} 30. Rf2 {[%emt 0:01:18]} Qe6 {[%emt 0:00:54]} 31. Rxf6 {[%emt 0:00:26]} Qxc6 {[%emt 0:01:03]} 32. Rxc6 {[%emt 0:00:06]} Re2 {[%emt 0:02:10]} 33. Rd6 {[%emt 0:00:44]} Rxb2 {[%emt 0:00:30]} 34. Rxd5 {[%emt 0:00:26]} Rd8 {[%emt 0:02:00]} 35. Rg5+ {[%emt 0:00:41]} Kf7 {[%emt 0:00:33]} 36. Nxc4 {[%emt 0:00:20]} Rc2 {[%emt 0:02:33]} 37. Nxb6 {[%emt 0:00:42]} axb6 {[%emt 0:00:17]} 38. Rg3 {[%emt 0:00:15]} Rdd2 {[%emt 0:00:25]} 39. a3 {[%emt 0:00:19]} Ra2 {[%emt 0:00:39]} 40. Rxa2 {[%emt 0:01:02]} Rxa2 {[%emt 0:00:08]} 41. c4 {[%emt 0:00:05]} Rc2 {[%emt 0:00:14]} 42. Rb3 {[%emt 0:00:46]} Rxc4 {[%emt 0:00:28]} 43. Rxb6 {[%emt 0:00:05]} Rc1+ {[%emt 0:00:29]} 44. Kf2 {[%emt 0:00:13]} Rc2+ {[%emt 0:00:07]} 45. Kg1 {[%emt 0:01:13]} Rc1+ {[%emt 0:00:11]} 46. Kf2 {[%emt 0:00:25]} Rc2+ {[%emt 0:00:08]} 47. Kg1 {[%emt 0:00:13]} Rc1+ {[%emt 0:00:11]} 48. Kf2 {[%emt 0:00:40]} Rc2+ {[%emt 0:00:47]} 49. Kg1 {[%emt 0:00:51]} Rc1+ 1/2-1/2

[Event "32nd Panamerican Youth 2022"]
[Site "Montevideo"]
[Date "2022.06.28"]
[Round "4.16"]
[White "Norabuena Ticona, Gabriela Paola"]
[Black "Mayeregger Gonzalez, Fiorella"]
[Result "1-0"]
[ECO "A04"]
[WhiteElo "1410"]
[BlackElo "1284"]
[Annotator "NA RC"]
[PlyCount "32"]
[EventDate "2022.06.26"]
[EventType "swiss"]
[EventCountry "URU"]
[SourceTitle "playchess.com"]
[Source "ChessBase"]
[SourceQuality "1"]
[TimeControl "5400+30"]

1. Nf3 {[%emt 0:00:12]} c5 {[%emt 0:01:37]} 2. c4 {[%emt 0:01:49]} e6 {[%emt 0:00:36]} 3. e3 {[%emt 0:02:06]} Nf6 {[%emt 0:01:22]} 4. d4 {[%emt 0:00:30]} d5 {[%emt 0:00:30]} 5. Nc3 {[%emt 0:00:30]} Nc6 {[%emt 0:00:30]} 6. a3 {[%emt 0:07:15]} b6 7. Be2 {[%emt 0:03:45]} Bb7 {[%emt 0:05:32]} 8. O-O {[%emt 0:01:28]} Be7 {[%emt 0:01:24]} 9. h3 {[%emt 0:04:54]} O-O {[%emt 0:00:52]} 10. Rb1 {[%emt 0:10:46]} Rb8 {[%emt 0:02:58]} 11. Na2 {[%emt 0:06:17]} Na5 12. cxd5 {[%emt 0:12:09]} Bxd5 {[%emt 0:07:24]} 13. Nc3 {[%emt 0:01:42]} Bb3 {[%emt 0:06:48]} 14. Qd2 {[%emt 0:03:23]} Nd5 15. Bd1 {[%emt 0:11:02]} Bc4 {[%emt 0:37:14]} 16. Re1 {[%emt 0:04:49]} Bf6 {[%emt 0:10:06]} 1-0

[Event "32nd Panamerican Youth 2022"]
[Site "Montevideo"]
[Date "2022.06.28"]
[Round "4.17"]
[White "Zacarias Rodriguez, Santiago"]
[Black "Caceres Benitez, Arturo Eduardo"]
[Result "1/2-1/2"]
[ECO "B33"]
[WhiteElo "2069"]
[BlackElo "1510"]
[Annotator "RC"]
[PlyCount "74"]
[EventDate "2022.06.26"]
[EventType "swiss"]
[EventCountry "URU"]
[SourceTitle "playchess.com"]
[Source "ChessBase"]
[SourceQuality "1"]
[TimeControl "5400+30"]

1. e4 c5 2. Nf3 Nc6 3. d4 cxd4 4. Nxd4 Nf6 5. Nc3 e5 6. Ndb5 d6 7. Bg5 a6 8. Na3 b5 9. Nd5 Be7 10. Bxf6 Bxf6 11. c3 Ne7 12. Nxf6+ gxf6 13. Nc2 f5 14. exf5 Bxf5 15. Ne3 Be6 16. Be2 f5 17. Bh5+ Ng6 18. Qc2 Qg5 19. Bf3 e4 20. Bxe4 fxe4 21. Qxe4 Kf7 22. f4 Qh4+ 23. g3 d5 24. Qxe6+ Kxe6 25. f5+ Ke5 26. gxh4 Nxh4 27. O-O-O Nf3 28. Rhf1 Ke4 29. Nxd5 Rhf8 30. Nb6 Ra7 31. f6 Rxf6 32. Nd7 Rf5 33. b4 Ke3 34. Nc5 a5 35. Kb2 axb4 36. cxb4 Rf4 37. a3 Rg7 1/2-1/2